fUST/lending_fUST_20250925
["ID","MTS","AMOUNT","RATE_DAILY","PERIOD"]
[387636236,1758792801105,-10000.01,0.00019352,2]
[387636237,1758792801318,-10000.01,0.00019352,2]
[387636238,1758792801475,-10000.01,0.00019352,2]
[387636239,1758792801719,-10000.01,0.00019352,2]
[387636241,1758792801883,-10000.01,0.00019352,2]
[387636242,1758792809694,-10000.01,0.00019352,2]
[387636243,1758792809863,-10000.01,0.00019352,2]
[387636244,1758792810029,-10000.01,0.00019352,2]
[387636245,1758792810183,-10000.01,0.00019352,2]
[387636246,1758792810360,-10000.01,0.00019352,2]
[387636247,1758792810546,-10000.01,0.00019352,2]
[387636248,1758792810730,-10000.01,0.00019352,2]
[387636249,1758792810875,-10000.01,0.00019352,2]
[387636250,1758792811032,-10000.01,0.00019352,2]
[387636251,1758792811211,-10000.01,0.00019352,2]
[387636252,1758792811346,-10000.01,0.00019352,2]
[387636253,1758792811599,-10000.01,0.00019352,2]
[387636254,1758792811736,-529.51112674,0.00019352,2]
[387636255,1758792811765,-165.07348047,0.00019525,2]
[387636256,1758792811794,-480.0,0.00019625,2]
[387636257,1758792811822,-480.0,0.00019625,2]
[387636258,1758792811850,-619.17,0.00019625,2]
[387636259,1758792811879,-586.49,0.00019625,2]
[387636260,1758792812070,-4279.52078558,0.00019899,2]
[387636262,1758792819696,-480.0,0.00019351,2]
[387636263,1758792819727,-500.0,0.00019351,2]
[387636264,1758792819757,-500.0,0.00019351,2]
[387636265,1758792819787,-500.0,0.00019351,2]
[387636266,1758792819819,-500.0,0.00019351,2]
[387636267,1758792819850,-594.71164477,0.00019351,2]
[387636268,1758792819882,-184.08487511,0.00019351,2]
[387636269,1758792819912,-500.0,0.00019351,2]
[387636270,1758792819941,-644.84226013,0.00019351,2]
[387636271,1758792819974,-480.0,0.00019625,2]
[387636272,1758792820158,-232.73243998,0.00019899,2]
[387636273,1758792820171,-10000.01,0.00019899,2]
[387636274,1758792820195,-10000.01,0.00019899,2]
[387636275,1758792820218,-2543.64664087,0.00019899,2]
[387636276,1758792820228,-480.0,0.00019899,2]
[387636277,1758792820238,-480.0,0.00019899,2]
[387636278,1758792820248,-619.17,0.00019899,2]
[387636279,1758792820257,-586.49,0.00019899,2]
[387636280,1758792820267,-480.0,0.00019899,2]
[387636281,1758792820278,-899.41045904,0.000199,2]
[387636282,1758792820288,-480.0,0.00020173,2]
[387636283,1758792820298,-502.10695359,0.00020173,2]
[387636284,1758792820307,-619.17,0.00020173,2]
[387636285,1758792820317,-586.49,0.00020173,2]
[387636286,1758792820327,-480.0,0.00020173,2]
[387636287,1758792820336,-480.0,0.00020447,2]
[387636288,1758792820346,-619.17,0.00020447,2]
[387636289,1758792820359,-144.3559465,0.00020447,2]
[387636290,1758792820393,-442.1340535,0.00020447,2]
[387636291,1758792820424,-480.0,0.00020447,2]
[387636292,1758792820473,-8155.741893,0.00020627,3]
[387636293,1758792820501,-10000.01,0.00020627,3]
[387636294,1758792820588,-10000.01,0.00020627,3]
[387636295,1758792820718,-411.59284708,0.00020627,3]
[387636296,1758792820749,-480.0,0.00020721,2]
[387636297,1758792820778,-619.17,0.00020721,2]
[387636298,1758792820811,-586.49,0.00020721,2]
[387636299,1758792820844,-480.0,0.00020721,2]
[387636300,1758792820875,-150.0,0.00020737,2]
[387636301,1758792820907,-899.4104588,0.00020972,2]
[387636302,1758792820941,-480.0,0.00020995,2]
[387636303,1758792820984,-619.17,0.00020995,2]
[387636304,1758792821143,-586.49,0.00020995,2]
[387636305,1758792821176,-480.0,0.00020995,2]
[387636306,1758792821211,-480.0,0.00021269,2]
[387636307,1758792821242,-619.17,0.00021269,2]
[387636308,1758792821281,-586.49,0.00021269,2]
[387636309,1758792821314,-480.0,0.00021269,2]
[387636310,1758792821345,-813.32009962,0.00021426,2]
[387636311,1758792821523,-2919.6278414,0.00021528,2]
[387636312,1758792821623,-4160.7543172,0.00021528,2]
[387636313,1758792821657,-480.0,0.00021543,2]
[387636314,1758792821689,-99.3313656,0.00021543,2]
[387636315,1758792821840,-519.8386344,0.00021543,2]
[387636316,1758792821874,-586.49,0.00021543,2]
[387636317,1758792821907,-480.0,0.00021543,2]
[387636318,1758792821937,-232.1441953,0.00021667,2]
[387636319,1758792821971,-237.1564218,0.00021816,2]
[387636320,1758792822010,-480.0,0.00021817,2]
[387636321,1758792822043,-619.17,0.00021817,2]
[387636322,1758792822079,-586.49,0.00021817,2]
[387636323,1758792822113,-480.0,0.00021817,2]
[387636324,1758792822146,-160.0,0.00021991,2]
[387636325,1758792822177,-600.0,0.00022,2]
[387636326,1758792822250,-899.4104588,0.00022044,2]
[387636327,1758792822283,-480.0,0.00022091,2]
[387636328,1758792822315,-619.17,0.00022091,2]
[387636329,1758792822347,-586.49,0.00022091,2]
[387636330,1758792822382,-480.0,0.00022091,2]
[387636331,1758792822415,-165.07348047,0.0002213,2]
[387636332,1758792822449,-480.0,0.00022365,2]
[387636333,1758792822484,-619.17,0.00022365,2]
[387636334,1758792822517,-586.49,0.00022365,2]
[387636336,1758792822954,-447.37461779,0.00022365,2]
[387636337,1758792822980,-32.62538221,0.00022365,2]
[387636338,1758792822991,-150.0,0.00022622,2]
[387636339,1758792823007,-347.05503806,0.00022639,2]
[387636340,1758792823017,-56.80957973,0.00022639,2]
[387636341,1758792823030,-480.0,0.00022639,2]
[387636342,1758792823047,-82.36042027,0.00022639,2]
[387636343,1758792823059,-77.63957973,0.00022639,2]
[387636344,1758792823077,-508.85042027,0.00022639,2]
[387636345,1758792823091,-91.14957973,0.00022639,2]
[387636346,1758792823108,-37.431497,0.00022639,2]
[387636347,1758792823123,-351.41892327,0.00022639,2]
[387636348,1758792823134,-547.99153553,0.00022913,2]
[387636349,1758792823162,-71.17846447,0.00022913,2]
[387636350,1758792823189,-347.49943693,0.00022913,2]
[387636351,1758792823207,-238.99056307,0.00022913,2]
[387636352,1758792823219,-241.00943693,0.00022913,2]
[387636353,1758792823237,-238.99056307,0.00022913,2]
[387636354,1758792823248,-380.17943693,0.00023116,2]
[387636355,1758792823262,-519.23102187,0.00023116,2]
[387636356,1758792823272,-67.25897813,0.00023187,2]
[387636357,1758792823287,-480.0,0.00023187,2]
[387636358,1758792823309,-71.91102187,0.00023187,2]
[387636359,1758792823321,-93.1624586,0.00023187,2]
[387636360,1758792823337,-480.0,0.00023187,2]
[387636361,1758792823352,-13.3275414,0.00023187,2]
[387636362,1758792823362,-480.0,0.00023187,2]
[387636363,1758792823373,-125.8424586,0.00023321,2]
[387636364,1758792823388,-586.49,0.00023321,2]
[387636365,1758792823412,-168.40212146,0.00023321,2]
[387636366,1758792827344,-2369.29253801,0.00023321,2]
[387636367,1758792827371,-1901.76,0.00023451,10]
[387636368,1758792827398,-619.17,0.00023461,2]
[387636369,1758792827473,-586.49,0.00023461,2]
[387636370,1758792827502,-480.0,0.00023461,2]
[387636371,1758792827529,-619.17,0.00023735,2]
[387636372,1758792827559,-586.49,0.00023735,2]
[387636373,1758792827588,-480.0,0.00023735,2]
[387636374,1758792827615,-619.17,0.00024009,2]
[387636375,1758792827644,-586.49,0.00024009,2]
[387636376,1758792827673,-480.0,0.00024009,2]
[387636377,1758792827701,-224.9795412,0.00024187,2]
[387636378,1758792827816,-674.4309176,0.00024187,2]
[387636379,1758792827842,-619.17,0.00024283,2]
[387636380,1758792827872,-586.49,0.00024283,2]
[387636381,1758792827901,-480.0,0.00024283,2]
[387636382,1758792827931,-150.0,0.00024507,2]
[387636383,1758792827959,-619.17,0.00024557,2]
[387636384,1758792827988,-586.49,0.00024557,2]
[387636385,1758792828020,-480.0,0.00024557,2]
[387636386,1758792828048,-165.07348047,0.00024735,2]
[387636387,1758792828202,-2257.3528203,0.000248,2]
[387636388,1758792828233,-619.17,0.00024831,2]
[387636389,1758792828265,-586.49,0.00024831,2]
[387636390,1758792828295,-480.0,0.00024831,2]
[387636391,1758792828631,-492.11166266,0.000249,2]
[387636392,1758792828645,-619.17,0.000249,2]
[387636393,1758792828658,-586.49,0.000249,2]
[387636394,1758792828672,-480.0,0.000249,2]
[387636395,1758792828686,-2113.9843594,0.000249,2]
[387636396,1758792828711,-10000.01,0.000249,2]
[387636397,1758792828736,-10000.01,0.000249,2]
[387636398,1758792828751,-10000.01,0.000249,2]
[387636399,1758792828776,-10000.01,0.000249,2]
[387636400,1758792828789,-10000.01,0.000249,2]
[387636401,1758792828803,-10000.01,0.000249,2]
[387636402,1758792828829,-10000.01,0.000249,2]
[387636403,1758792829055,-10000.01,0.000249,2]
[387636404,1758792829225,-10000.01,0.000249,2]
[387636406,1758792854754,-150.0,0.00020773,2]
[387636417,1758793045957,10000.01,0.00018481,2]
[387636418,1758793045978,10000.01,0.00018481,2]
[387636419,1758793045999,10000.01,0.00018481,2]
[387636420,1758793046020,5077.133122,0.00018481,2]
[387636422,1758793079910,195.35,0.00015984,2]
[387636428,1758793146920,4727.526878,0.00018395,2]
[387636429,1758793146942,4342.3650752,0.00018395,2]
[387636439,1758793236653,-165.02604199,0.00019252,2]
[387636440,1758793236675,-99.10381268,0.00019324,2]
[387636441,1758793239782,-274.18604221,0.00019324,2]
[387636442,1758793242297,-253.9893709,0.00019324,2]
[387636443,1758793242319,-151.52200301,0.0001934,2]
[387636444,1758793242343,-57.49952074,0.00019342,3]
[387636445,1758793246151,-290.63455299,0.00019342,3]
[387636446,1758793249633,-141.06592627,0.00019342,3]
[387636447,1758793249656,-26.29771173,0.00019349,2]
[387636448,1758793253413,-168.18166989,0.00019349,2]
[387636450,1758793255393,167.19295,9.197e-05,2]
[387636451,1758793255830,167.19295,0.00018395,2]
[387636452,1758793259473,-105.52061838,0.00019349,2]
[387636453,1758793259495,-93.28731862,0.00019349,2]
[387636457,1758793391309,342.727971,0.00018769,2]
[387636458,1758793391601,227.98629458,0.0001877,2]
[387636469,1758793432133,-165.02604199,0.00019251,2]
[387636470,1758793432155,-130.58919001,0.00019252,2]
[387636471,1758793434605,-176.04497273,0.00019252,2]
[387636472,1758793436886,-195.1892179,0.00019252,2]
[387636504,1758793596170,-3525.43036029,0.00019252,2]
[387636509,1758793597701,-165.02604199,0.00019251,2]
[387636510,1758793597725,-117.87543397,0.00019252,2]
[387636529,1758793602948,-2831.27384545,0.00019252,2]
[387636530,1758793602977,-300.0,0.000193,2]
[387636532,1758793603005,-300.0,0.000193,2]
[387636533,1758793603033,-1200.0,0.00019347,2]
[387636534,1758793603062,-300.0,0.00019347,2]
[387636582,1758793610916,-300.0,0.00019348,2]
[387636584,1758793610946,-300.0,0.00019348,2]
[387636585,1758793610974,-724.0,0.00019349,2]
[387636586,1758793611008,-480.0,0.00019349,2]
[387636587,1758793611039,-480.0,0.00019349,2]
[387636588,1758793611066,-484.566348,0.00019349,2]
[387636589,1758793611095,-502.63016143,0.00019349,2]
[387636591,1758793611123,-480.0,0.00019349,2]
[387636592,1758793611153,-480.0,0.00019349,2]
[387636593,1758793611187,-431.7302066,0.00019349,2]
[387636594,1758793611218,-160.99282274,0.00019349,2]
[387636599,1758793620854,-352.17092246,0.00019349,2]
[387636600,1758793620883,-478.67575118,0.00019349,2]
[387636601,1758793620910,-301.90012974,0.00019349,2]
[387636602,1758793620941,-480.0,0.00019349,2]
[387636603,1758793620969,-185.6036078,0.00019349,2]
[387636604,1758793620996,-480.0,0.00019349,2]
[387636605,1758793621023,-278.29114807,0.00019349,2]
[387636606,1758793621052,-485.91211448,0.00019349,2]
[387636607,1758793621079,-484.92148892,0.00019349,2]
[387636608,1758793621105,-480.0,0.00019349,2]
[387636609,1758793621133,-376.47066353,0.00019349,2]
[387636610,1758793621160,-480.0,0.00019349,2]
[387636611,1758793621284,-484.85520433,0.00019349,2]
[387636612,1758793621408,-510.76,0.00019349,2]
[387636613,1758793621438,-485.02749771,0.00019349,2]
[387636614,1758793621466,-480.0,0.00019349,2]
[387636615,1758793621494,-480.0,0.00019349,2]
[387636616,1758793621522,-480.0,0.00019349,2]
[387636617,1758793621548,-487.51073594,0.00019349,2]
[387636618,1758793621576,-430.02054,0.0001935,2]
[387636619,1758793621605,-503.12958683,0.0001935,2]
[387636620,1758793621634,-313.17523489,0.0001935,2]
[387636621,1758793625010,-300.0,0.00019348,2]
[387636622,1758793625038,-691.0524006,0.0001935,2]
[387636623,1758793625066,-480.0,0.0001935,2]
[387636624,1758793625095,-480.0,0.0001935,2]
[387636625,1758793625122,-442.89,0.0001935,2]
[387636626,1758793625150,-480.0,0.0001935,2]
[387636627,1758793625179,-555.14716155,0.0001935,2]
[387636628,1758793625211,-480.0,0.0001935,2]
[387636629,1758793625240,-502.9907,0.0001935,2]
[387636630,1758793625268,-480.0,0.0001935,2]
[387636631,1758793625295,-53.1394757,0.0001935,2]
[387636632,1758793628070,-548.27641062,0.00019349,2]
[387636633,1758793628091,-109.5705243,0.0001935,2]
[387636634,1758793628114,-412.98835579,0.0001935,2]
[387636635,1758793628134,-480.0,0.0001935,2]
[387636636,1758793628155,-159.29925006,0.0001935,2]
[387636637,1758793629078,-486.19398006,0.00019349,2]
[387636638,1758793629098,-320.70074994,0.0001935,2]
[387636639,1758793629118,-480.0,0.0001935,2]
[387636640,1758793629140,-480.0,0.0001935,2]
[387636641,1758793629162,-934.7,0.0001935,2]
[387636642,1758793629184,-435.10589097,0.0001935,2]
[387636643,1758793630539,356.9027732,0.00018357,2]
[387636648,1758793654907,704.6445172,0.00018504,2]
[387636649,1758793656034,-480.0,0.00019349,2]
[387636650,1758793656072,-480.0,0.00019349,2]
[387636651,1758793656110,-480.0,0.00019349,2]
[387636652,1758793656141,-489.01548928,0.00019349,2]
[387636653,1758793656175,-483.7198244,0.00019349,2]
[387636654,1758793656217,-44.89410903,0.0001935,2]
[387636655,1758793656254,-480.0,0.0001935,2]
[387636656,1758793656289,-480.0,0.0001935,2]
[387636657,1758793656321,-480.0,0.0001935,2]
[387636658,1758793656353,-360.09631508,0.0001935,2]
[387636659,1758793656386,-303.64828304,0.0001935,2]
[387636660,1758793656419,-397.26195834,0.0001935,2]
[387636661,1758793666388,-82.73804166,0.0001935,2]
[387636662,1758793666411,-95.38077842,0.0001935,2]
[387636663,1758793669666,-180.40773396,0.0001935,2]
[387636666,1758793697604,-153.05260372,0.00019158,2]
[387636667,1758793697627,-5.00094374,0.00019349,2]
[387636668,1758793706267,-474.99905626,0.00019349,2]
[387636669,1758793706296,-480.0,0.00019349,2]
[387636670,1758793706324,-484.99425209,0.00019349,2]
[387636671,1758793706351,-484.2666169,0.00019349,2]
[387636672,1758793706378,-480.0,0.00019349,2]
[387636673,1758793706408,-204.21148762,0.0001935,2]
[387636674,1758793706435,-480.0,0.0001935,2]
[387636675,1758793706466,-480.0,0.0001935,2]
[387636676,1758793706495,-480.0,0.0001935,2]
[387636677,1758793706522,-482.65708282,0.0001935,2]
[387636678,1758793706550,-452.80270455,0.0001935,2]
[387636684,1758793725581,-168.531062,0.00019252,2]
[387636685,1758793728180,-233.23475398,0.00019252,2]
[387636686,1758793732445,-297.91568634,0.00019252,2]
[387636687,1758793734949,-174.25551148,0.00019252,2]
[387636688,1758793735392,7080.3821586,0.00018351,2]
[387636689,1758793736173,-3442.44941268,0.00019252,2]
[387636690,1758793736201,-483.41996894,0.00019349,2]
[387636691,1758793736232,-405.67891948,0.00019349,2]
[387636692,1758793736260,-480.0,0.00019349,2]
[387636693,1758793737159,-334.438766,0.00019349,2]
[387636694,1758793740338,-145.561234,0.00019349,2]
[387636695,1758793740360,-92.50167988,0.00019349,2]
[387636696,1758793744195,-200.80108424,0.00019349,2]
[387636697,1758793746059,-197.8440045,0.00019349,2]
[387636698,1758793746088,-484.48920386,0.00019349,2]
[387636699,1758793746118,-480.0,0.00019349,2]
[387636700,1758793746150,-485.15306181,0.00019349,2]
[387636701,1758793746178,-480.0,0.00019349,2]
[387636702,1758793746206,-476.2801756,0.00019349,2]
[387636703,1758793746237,-32.14759952,0.0001935,2]
[387636704,1758793746264,-482.04314207,0.0001935,2]
[387636705,1758793746294,-480.0,0.0001935,2]
[387636706,1758793746326,-480.0,0.0001935,2]
[387636707,1758793746355,-480.0,0.0001935,2]
[387636708,1758793746383,-401.79874406,0.0001935,2]
[387636709,1758793747736,-80.49813716,0.0001935,2]
[387636710,1758793747758,-110.15892184,0.0001935,2]
[387636711,1758793750091,-209.83653977,0.00019349,2]
[387636712,1758793752664,-265.00585586,0.00019349,2]
[387636713,1758793756360,-7.1481806,0.00019349,2]
[387636714,1758793756383,-205.46901825,0.00019349,2]
[387636715,1758793762456,2308.9550162,0.00018357,2]
[387636717,1758793780254,-268.35430913,0.00019252,2]
[387636718,1758793783457,-133.10439539,0.00019252,2]
[387636719,1758793783480,-97.95577461,0.00019349,2]
[387636720,1758793786444,-176.57520714,0.00019349,2]
[387636721,1758793786468,-184.72521965,0.00019349,2]
[387636722,1758793792010,-195.11545431,0.00019349,2]
[387636723,1758793792996,247.0832099,0.00018357,2]
[387636724,1758793793966,-100.15932604,0.00019349,2]
[387636725,1758793793989,-354.86056585,0.00019349,2]
[387636726,1758793800004,-127.29091791,0.00019349,2]
[387636727,1758793800031,-483.22635894,0.00019349,2]
[387636728,1758793800058,-85.52754881,0.00019349,2]
[387636729,1758793803866,-248.47899204,0.00019348,2]
[387636730,1758793805944,-51.52100796,0.00019348,2]
[387636731,1758793805967,-102.01010101,0.00019348,2]
[387636733,1758793810327,-66.98989899,0.00019348,2]
[387636734,1758793810353,-128.40751365,0.00019348,2]
[387636782,1758793832426,-1071.59248635,0.00019348,2]
[387636784,1758793832435,-84.60751365,0.00019349,2]
[387636786,1758793832447,-309.86493754,0.00019349,2]
[387636788,1758793832457,-480.0,0.00019349,2]
[387636790,1758793832466,-268.19630865,0.00019349,2]
[387636792,1758793832475,-480.0,0.00019349,2]
[387636794,1758793832484,-480.0,0.00019349,2]
[387636796,1758793832493,-480.0,0.00019349,2]
[387636798,1758793832502,-480.0,0.00019349,2]
[387636800,1758793832511,-480.0,0.00019349,2]
[387636802,1758793832520,-480.0,0.00019349,2]
[387636804,1758793832529,-375.79085115,0.0001935,2]
[387636806,1758793832538,-531.14201403,0.0001935,2]
[387636808,1758793832548,-480.0,0.0001935,2]
[387636810,1758793832558,-480.0,0.0001935,2]
[387636812,1758793832567,-480.0,0.0001935,2]
[387636814,1758793832577,-532.02126288,0.0001935,2]
[387636816,1758793832585,-4279.52078558,0.0001935,2]
[387636818,1758793832595,-233.0,0.00019351,2]
[387636820,1758793832606,-480.0,0.00019351,2]
[387636822,1758793832615,-454.87185314,0.00019351,2]
[387636824,1758793832625,-480.0,0.00019351,2]
[387636826,1758793832634,-480.0,0.00019351,2]
[387636828,1758793832644,-515.4,0.00019351,2]
[387636830,1758793832653,-480.0,0.00019351,2]
[387636832,1758793832663,-480.0,0.00019351,2]
[387636834,1758793832672,-480.0,0.00019351,2]
[387636836,1758793832681,-480.0,0.00019351,2]
[387636839,1758793832691,-480.0,0.00019351,2]
[387636841,1758793832701,-480.0,0.00019351,2]
[387636843,1758793832711,-480.0,0.00019351,2]
[387636845,1758793832720,-480.0,0.00019351,2]
[387636847,1758793832730,-485.36505383,0.00019351,2]
[387636849,1758793832739,-480.0,0.00019351,2]
[387636851,1758793832748,-480.0,0.00019351,2]
[387636853,1758793832757,-361.15650588,0.00019351,2]
[387636855,1758793832766,-500.0,0.00019351,2]
[387636857,1758793832775,-500.0,0.00019351,2]
[387636859,1758793832784,-500.0,0.00019351,2]
[387636861,1758793832793,-291.39659953,0.00019351,2]
[387636863,1758793832802,-396.73747157,0.00019351,2]
[387636865,1758793832812,-500.0,0.00019351,2]
[387636867,1758793832821,-500.0,0.00019351,2]
[387636868,1758793832830,-500.0,0.00019351,2]
[387636870,1758793832840,-500.0,0.00019351,2]
[387636872,1758793832849,-500.0,0.00019351,2]
[387636874,1758793832858,-500.0,0.00019351,2]
[387636876,1758793832867,-500.0,0.00019351,2]
[387636878,1758793832876,-500.0,0.00019351,2]
[387636880,1758793832886,-500.0,0.00019351,2]
[387636882,1758793832895,-500.0,0.00019351,2]
[387636884,1758793832905,-500.0,0.00019351,2]
[387636886,1758793832914,-569.2701893,0.00019351,2]
[387636888,1758793832923,-500.0,0.00019351,2]
[387636890,1758793832932,-600.0,0.00019351,2]
[387636892,1758793832941,-370000.0,0.00019352,2]
[387636894,1758793832950,-519.99,0.00019352,2]
[387636896,1758793832959,-326.53650875,0.00019373,2]
[387636898,1758793832969,-480.0,0.00019623,2]
[387636900,1758793832978,-480.0,0.00019623,2]
[387636902,1758793832987,-480.0,0.00019623,2]
[387636904,1758793832996,-180.67074382,0.00019623,2]
[387636906,1758793833006,-492.92156149,0.00019623,2]
[387636909,1758793833015,-484.1744422,0.00019623,2]
[387636911,1758793833025,-480.0,0.00019623,2]
[387636913,1758793833035,-480.0,0.00019623,2]
[387636915,1758793833044,-480.0,0.00019624,2]
[387636917,1758793833053,-237.1564218,0.00019624,2]
[387636919,1758793833063,-183.42,0.00019624,2]
[387636921,1758793833072,-625.4741397,0.00019624,2]
[387636923,1758793833082,-576.42549296,0.00019624,2]
[387636925,1758793833091,-934.7,0.00019624,2]
[387636927,1758793833101,-480.0,0.00019624,2]
[387636929,1758793833111,-480.0,0.00019624,2]
[387636931,1758793833121,-480.0,0.00019624,2]
[387636933,1758793833131,-480.0,0.00019624,2]
[387636935,1758793833141,-480.0,0.00019624,2]
[387636937,1758793833150,-480.0,0.00019624,2]
[387636939,1758793833159,-480.0,0.00019624,2]
[387636941,1758793833170,-489.44305214,0.00019624,2]
[387636943,1758793833179,-480.0,0.00019624,2]
[387636945,1758793833188,-480.0,0.00019624,2]
[387636947,1758793833197,-521.83599742,0.00019625,2]
[387636949,1758793833206,-450.97524519,0.00019625,2]
[387636951,1758793833216,-480.0,0.00019625,2]
[387636953,1758793833226,-515.4,0.00019625,2]
[387636955,1758793833235,-480.0,0.00019625,2]
[387636957,1758793833245,-480.0,0.00019625,2]
[387636959,1758793833255,-480.0,0.00019625,2]
[387636961,1758793833265,-480.0,0.00019625,2]
[387636963,1758793833275,-256.82,0.00019897,2]
[387636965,1758793833287,-480.0,0.00019897,2]
[387636967,1758793833297,-480.0,0.00019898,2]
[387636969,1758793833306,-934.7,0.00019898,2]
[387636971,1758793833315,-480.0,0.00019898,2]
[387636973,1758793833325,-480.0,0.00019898,2]
[387636975,1758793833335,-448.23248801,0.00019898,2]
[387636977,1758793833345,-480.0,0.00019898,2]
[387636979,1758793833355,-480.0,0.00019898,2]
[387636981,1758793833365,-480.0,0.00019898,2]
[387636983,1758793833374,-480.0,0.00019898,2]
[387636985,1758793833384,-480.0,0.00019898,2]
[387636987,1758793833394,-480.0,0.00019899,2]
[387636990,1758793833404,-515.4,0.00019899,2]
[387637003,1758793833515,-480.0,0.00019899,2]
[387637005,1758793833526,-480.0,0.00019899,2]
[387637007,1758793833536,-244.37557743,0.000199,2]
[387637009,1758793833546,-151.0,0.000199,2]
[387637011,1758793833556,-151.9268004,0.000199,2]
[387637013,1758793833566,-984.60573942,0.000199,2]
[387637015,1758793833575,-500.0,0.00019973,2]
[387637017,1758793833585,-500.0,0.00019973,2]
[387637019,1758793833595,-100000.0,0.0001999,2]
[387637021,1758793833606,-506.92875789,0.00020052,2]
[387637023,1758793833615,-365.71303462,0.00020171,2]
[387637025,1758793833625,-480.0,0.00020172,2]
[387637027,1758793833636,-934.7,0.00020172,2]
[387637029,1758793833645,-480.0,0.00020172,2]
[387637031,1758793833655,-480.0,0.00020172,2]
[387637033,1758793833666,-480.0,0.00020172,2]
[387637035,1758793833675,-480.0,0.00020172,2]
[387637037,1758793833684,-480.0,0.00020172,2]
[387637039,1758793833694,-480.0,0.00020173,2]
[387637041,1758793833704,-515.4,0.00020173,2]
[387637043,1758793833714,-480.0,0.00020173,2]
[387637045,1758793833724,-480.0,0.00020173,2]
[387637047,1758793833734,-500.0,0.00020181,2]
[387637049,1758793833744,-12702.19380117,0.00020218,2]
[387637051,1758793833755,-501.7564302,0.0002025,2]
[387637053,1758793833765,-500.0,0.0002025,2]
[387637055,1758793833775,-480.0,0.00020446,2]
[387637058,1758793833786,-934.7,0.00020446,2]
[387637060,1758793833796,-480.0,0.00020446,2]
[387637062,1758793833806,-480.0,0.00020446,2]
[387637064,1758793833815,-480.0,0.00020446,2]
[387637066,1758793833825,-480.0,0.00020446,2]
[387637068,1758793833834,-480.0,0.00020446,2]
[387637070,1758793833844,-480.0,0.00020447,2]
[387637072,1758793833855,-515.4,0.00020447,2]
[387637074,1758793833865,-480.0,0.00020447,2]
[387637076,1758793833874,-480.0,0.00020447,2]
[387637078,1758793833884,-1000.0,0.00020521,2]
[387637080,1758793833893,-480.0,0.0002072,2]
[387637082,1758793833904,-934.7,0.0002072,2]
[387637084,1758793833914,-588.00508992,0.0002072,2]
[387637086,1758793833924,-480.0,0.0002072,2]
[387637088,1758793833934,-480.0,0.0002072,2]
[387637090,1758793833944,-480.0,0.0002072,2]
[387637092,1758793833954,-480.0,0.0002072,2]
[387637094,1758793833963,-480.0,0.00020721,2]
[387637096,1758793833972,-515.4,0.00020721,2]
[387637098,1758793833981,-480.0,0.00020721,2]
[387637100,1758793833991,-480.0,0.00020721,2]
[387637101,1758793834001,-1000.0,0.00020729,2]
[387637102,1758793834010,-150.0,0.00020771,2]
[387637103,1758793834020,-216.236,0.00020773,2]
[387637104,1758793834030,-401.4587045,0.00020774,2]
[387637106,1758793834040,-394.58552777,0.00020798,2]
[387637107,1758793834050,-984.60573932,0.00020972,2]
[387637109,1758793834061,-185.229449,0.00020992,2]
[387637111,1758793834071,-480.0,0.00020994,2]
[387637113,1758793834081,-934.7,0.00020994,2]
[387637115,1758793834091,-480.0,0.00020994,2]
[387637117,1758793834100,-480.0,0.00020994,2]